Workbook

Sheet Model
A1: Roulette: Double-Up Strategy
A2: There are 38 possible outcomes, two are double zero, 18 are black and 18 are red.
A3: If you bet either black or red your chances of winning an amount equal to your bet is
A4: 18/38. If you win you keep your bet and receive an additional amount equal to your
A5: bet. If you lose you receive nothing and lose your bet. This can be modeled as:
A7: In the double-up strategy your bet doubles until you win. When you eventually win
A8: a bet you will have total winnings equal to the starting bet.
B10: Starting Amount | C10: 1000
B11: Starting Bet | C11: 10
A12: Bet Number | B12: Bankroll Before Bet | C12: Amount Bet: Stop After 1st Bet | D12: Win or Lose | E12: Change in Bankroll | F12: Bankroll After Bet | G12: ="=999 if Bankroll <"&C10 -> =999 if Bankroll <1000
A14: =1+A13 -> 1 | B14: =C10 -> 1000 | C14: =$C$11 -> 10 | D14: =IF(RAND()<18/38,"Win","Lose") -> Lose | E14: =IF(D14="Win",C14,-C14) -> -10 | F14: =B14+E14 -> 990 | G14: =IF(F14>$C$10,A14,999) -> 999
A15: =1+A14 -> 2 | B15: =F14 -> 990 | C15: =IF(F14>$C$10,0,2*C14) -> 20 | D15: =IF(RAND()<18/38,"Win","Lose") -> Win | E15: =IF(D15="Win",C15,-C15) -> 20 | F15: =B15+E15 -> 1010 | G15: =IF(F15>$C$10,A15,999) -> 2
A16: =1+A15 -> 3 | B16: =F15 -> 1010 | C16: =IF(F15>$C$10,0,2*C15) -> 0 | D16: Lose | E16: =IF(D16="Win",C16,-C16) -> 0 | F16: =B16+E16 -> 1010 | G16: 3
A17: 4 | B17: 1010 | C17: 0 | D17: Win | E17: 0 | F17: 1010 | G17: 4
A18: 5 | B18: 1010 | C18: 0 | D18: Lose | E18: 0 | F18: 1010 | G18: 5
A19: 6 | B19: 1010 | C19: 0 | D19: Win | E19: 0 | F19: 1010 | G19: 6
A20: 7 | B20: 1010 | C20: 0 | D20: Win | E20: 0 | F20: 1010 | G20: 7
A21: 8 | B21: 1010 | C21: 0 | D21: Lose | E21: 0 | F21: 1010 | G21: 8
A22: 9 | B22: 1010 | C22: 0 | D22: Lose | E22: 0 | F22: 1010 | G22: 9
A23: 10 | B23: 1010 | C23: 0 | D23: Lose | E23: 0 | F23: 1010 | G23: 10
A24: 11 | B24: 1010 | C24: 0 | D24: Win | E24: 0 | F24: 1010 | G24: 11
A25: 12 | B25: 1010 | C25: 0 | D25: Win | E25: 0 | F25: 1010 | G25: 12
A26: 13 | B26: 1010 | C26: 0 | D26: Win | E26: 0 | F26: 1010 | G26: 13
A27: 14 | B27: 1010 | C27: 0 | D27: Lose | E27: 0 | F27: 1010 | G27: 14
A28: 15 | B28: 1010 | C28: 0 | D28: Win | E28: 0 | F28: 1010 | G28: 15
A29: 16 | B29: 1010 | C29: 0 | D29: Win | E29: 0 | F29: 1010 | G29: 16
A30: 17 | B30: 1010 | C30: 0 | D30: Win | E30: 0 | F30: 1010 | G30: 17
A31: 18 | B31: 1010 | C31: 0 | D31: Lose | E31: 0 | F31: 1010 | G31: 18
A32: 19 | B32: 1010 | C32: 0 | D32: Win | E32: 0 | F32: 1010 | G32: 19
A33: 20 | B33: 1010 | C33: 0 | D33: Win | E33: 0 | F33: 1010 | G33: 20
A34: 21 | B34: 1010 | C34: 0 | D34: Win | E34: 0 | F34: 1010 | G34: 21
A35: 22 | B35: 1010 | C35: 0 | D35: Win | E35: 0 | F35: 1010 | G35: 22
A36: 23 | B36: 1010 | C36: 0 | D36: Lose | E36: 0 | F36: 1010 | G36: 23
A37: 24 | B37: 1010 | C37: 0 | D37: Win | E37: 0 | F37: 1010 | G37: 24
A38: 25 | B38: 1010 | C38: 0 | D38: Lose | E38: 0 | F38: 1010 | G38: 25
A39: 26 | B39: 1010 | C39: 0 | D39: Lose | E39: 0 | F39: 1010 | G39: 26
A40: 27 | B40: 1010 | C40: 0 | D40: Lose | E40: 0 | F40: 1010 | G40: 27
A41: 28 | B41: 1010 | C41: 0 | D41: Lose | E41: 0 | F41: 1010 | G41: 28
A42: 29 | B42: 1010 | C42: 0 | D42: Win | E42: 0 | F42: 1010 | G42: 29
A43: 30 | B43: 1010 | C43: 0 | D43: Lose | E43: 0 | F43: 1010 | G43: 30
A44: 31 | B44: 1010 | C44: 0 | D44: Win | E44: 0 | F44: 1010 | G44: 31
A45: 32 | B45: 1010 | C45: 0 | D45: Lose | E45: 0 | F45: 1010 | G45: 32
A46: 33 | B46: 1010 | C46: 0 | D46: Lose | E46: 0 | F46: 1010 | G46: 33
A47: 34 | B47: 1010 | C47: 0 | D47: Win | E47: 0 | F47: 1010 | G47: 34
A48: 35 | B48: 1010 | C48: 0 | D48: Lose | E48: 0 | F48: 1010 | G48: 35
A49: 36 | B49: 1010 | C49: 0 | D49: Win | E49: 0 | F49: 1010 | G49: 36
A50: 37 | B50: 1010 | C50: 0 | D50: Lose | E50: 0 | F50: 1010 | G50: 37
A51: 38 | B51: 1010 | C51: 0 | D51: Lose | E51: 0 | F51: 1010 | G51: 38
A52: 39 | B52: 1010 | C52: 0 | D52: Lose | E52: 0 | F52: 1010 | G52: 39
A53: 40 | B53: 1010 | C53: 0 | D53: Lose | E53: 0 | F53: 1010 | G53: 40
A54: 41 | B54: 1010 | C54: 0 | D54: Win | E54: 0 | F54: 1010 | G54: 41
A55: 42 | B55: 1010 | C55: 0 | D55: Win | E55: 0 | F55: 1010 | G55: 42
A56: 43 | B56: 1010 | C56: 0 | D56: Win | E56: 0 | F56: 1010 | G56: 43
A57: 44 | B57: 1010 | C57: 0 | D57: Win | E57: 0 | F57: 1010 | G57: 44
A58: 45 | B58: 1010 | C58: 0 | D58: Lose | E58: 0 | F58: 1010 | G58: 45
A59: 46 | B59: 1010 | C59: 0 | D59: Win | E59: 0 | F59: 1010 | G59: 46
A60: 47 | B60: 1010 | C60: 0 | D60: Win | E60: 0 | F60: 1010 | G60: 47
A61: 48 | B61: 1010 | C61: 0 | D61: Win | E61: 0 | F61: 1010 | G61: 48
A62: 49 | B62: 1010 | C62: 0 | D62: Lose | E62: 0 | F62: 1010 | G62: 49
A63: 50 | B63: 1010 | C63: 0 | D63: Win | E63: 0 | F63: 1010 | G63: 50
B64: Sum of Bets | C64: =SUM(C14:C63) -> 30 | F64: Number of Bets | G64: =MIN(G14:G63) -> 2
E66: Final Tally of Amount Won (Lost) | F66: =F63-B14 -> 10
E67: Maximum Bet | F67: =MAX(C14:C63) -> 20
B68: Total of Bets | C68: # Total Bets | D68: Bets | F68: Expected Frequency
A69: 1 | B69: =$C$11 -> 10 | C69: =FREQUENCY(DataTableValues,B69:B89) -> 4684 | D69: =C11 -> 10 | F69: =18/38*10000 -> 4736.842105
A70: =1+A69 -> 2 | B70: =SUM($D$69:D70) -> 30 | C70: 2556 | D70: =2*D69 -> 20 | F70: =F69*(20/38) -> 2493.074792
A71: 3 | B71: =SUM($D$69:D71) -> 70 | C71: 1325 | D71: =2*D70 -> 40 | F71: =F70*(20/38) -> 1312.144627
A72: 4 | B72: =SUM($D$69:D72) -> 150 | C72: 653 | D72: 80 | F72: 690.6024355
A73: 5 | B73: =SUM($D$69:D73) -> 310 | C73: 401 | D73: 160 | F73: 363.4749661
A74: 6 | B74: =SUM($D$69:D74) -> 630 | C74: 189 | D74: 320 | F74: 191.3026137
A75: 7 | B75: =SUM($D$69:D75) -> 1270 | C75: 91 | D75: 640 | F75: 100.6855862
A76: 8 | B76: =SUM($D$69:D76) -> 2550 | C76: 43 | D76: 1280 | F76: 52.99241377
A77: 9 | B77: =SUM($D$69:D77) -> 5110 | C77: 28 | D77: 2560 | F77: 27.89074409
A78: 10 | B78: =SUM($D$69:D78) -> 10230 | C78: 13 | D78: 5120 | F78: 14.679339
A79: 11 | B79: =SUM($D$69:D79) -> 20470 | C79: 8 | D79: 10240 | F79: 7.725967892
A80: 12 | B80: =SUM($D$69:D80) -> 40950 | C80: 4 | D80: 20480 | F80: 4.066298891
A81: 13 | B81: =SUM($D$69:D81) -> 81910 | C81: 4 | D81: 40960 | F81: 2.140157311
A82: =1+A81 -> 14 | B82: =SUM($D$69:D82) -> 163830 | C82: 0 | D82: 81920 | F82: 1.126398585
A83: 15 | B83: =SUM($D$69:D83) -> 327670 | C83: 0 | D83: 163840 | F83: 0.5928413603
A84: 16 | B84: =SUM($D$69:D84) -> 655350 | C84: 0 | D84: 327680 | F84: 0.3120217686
A85: 17 | B85: =SUM($D$69:D85) -> 1310710 | C85: 1 | D85: 655360 | F85: 0.1642219835
A86: 18 | B86: =SUM($D$69:D86) -> 2621430 | C86: 0 | D86: 1310720 | F86: 0.08643262288
A87: 19 | B87: =SUM($D$69:D87) -> 5242870 | C87: 0 | D87: 2621440 | F87: 0.04549085415
A88: 20 | B88: =SUM($D$69:D88) -> 10485750 | C88: 0 | D88: 5242880 | F88: 0.02394255481
A89: 21 | B89: =SUM($D$69:D89) -> 20971510 | C89: 0 | D89: 10485760 | F89: 0.01260134464
B90: Other | C90: 0 | F90: =SUM(F69:F89) -> 9999.985999

Sheet Simulations
C1: Data Table: Simulated Values of Formula Cell
A2: Formula Cell--> | B2: =Model!C64 -> 30 | C2: 1 | D2: 2 | E2: 3 | F2: 4 | G2: 5 | H2: 6 | I2: 7 | J2: 8 | K2: 9 | L2: 10
B3: 1 | C3: 10 | D3: 310 | E3: 10 | F3: 10 | G3: 30 | H3: 10 | I3: 30 | J3: 70 | K3: 10 | L3: 10
A4: Dummy1 | B4: 2 | C4: 10 | D4: 30 | E4: 10 | F4: 30 | G4: 30 | H4: 10 | I4: 10 | J4: 70 | K4: 10 | L4: 10
A5: Dummy2 | B5: 3 | C5: 70 | D5: 30 | E5: 30 | F5: 10 | G5: 70 | H5: 30 | I5: 30 | J5: 30 | K5: 10 | L5: 70
A6: =MAX(C3:L1002) -> 1310710 | B6: 4 | C6: 10 | D6: 310 | E6: 30 | F6: 10 | G6: 10 | H6: 10 | I6: 30 | J6: 10 | K6: 10 | L6: 30
A7: =MIN(C3:L1002) -> 10 | B7: 5 | C7: 30 | D7: 30 | E7: 150 | F7: 10 | G7: 150 | H7: 10 | I7: 10 | J7: 150 | K7: 10 | L7: 30
B8: 6 | C8: 10 | D8: 10 | E8: 30 | F8: 10 | G8: 10 | H8: 30 | I8: 70 | J8: 70 | K8: 30 | L8: 30
B9: 7 | C9: 10 | D9: 1270 | E9: 70 | F9: 30 | G9: 70 | H9: 10 | I9: 150 | J9: 30 | K9: 10 | L9: 10
B10: 8 | C10: 70 | D10: 70 | E10: 10 | F10: 10 | G10: 30 | H10: 10 | I10: 10 | J10: 10 | K10: 30 | L10: 30
B11: 9 | C11: 10 | D11: 70 | E11: 10 | F11: 30 | G11: 630 | H11: 10 | I11: 30 | J11: 150 | K11: 30 | L11: 10
B12: 10 | C12: 30 | D12: 150 | E12: 70 | F12: 150 | G12: 70 | H12: 10 | I12: 310 | J12: 10 | K12: 30 | L12: 70
B13: 11 | C13: 10 | D13: 10 | E13: 10 | F13: 70 | G13: 70 | H13: 150 | I13: 30 | J13: 30 | K13: 70 | L13: 70
B14: 12 | C14: 310 | D14: 10 | E14: 70 | F14: 10 | G14: 30 | H14: 10 | I14: 70 | J14: 630 | K14: 30 | L14: 10
B15: 13 | C15: 10 | D15: 10 | E15: 10 | F15: 30 | G15: 30 | H15: 10 | I15: 10 | J15: 10 | K15: 70 | L15: 10
B16: 14 | C16: 10 | D16: 10 | E16: 30 | F16: 10 | G16: 10 | H16: 70 | I16: 5110 | J16: 70 | K16: 30 | L16: 10
B17: 15 | C17: 150 | D17: 30 | E17: 150 | F17: 70 | G17: 10 | H17: 10 | I17: 30 | J17: 10 | K17: 310 | L17: 70
B18: 16 | C18: 30 | D18: 10 | E18: 30 | F18: 10 | G18: 30 | H18: 1270 | I18: 70 | J18: 10 | K18: 150 | L18: 30
B19: 17 | C19: 30 | D19: 310 | E19: 630 | F19: 30 | G19: 310 | H19: 10 | I19: 70 | J19: 630 | K19: 150 | L19: 1270
B20: 18 | C20: 70 | D20: 30 | E20: 10 | F20: 150 | G20: 30 | H20: 10 | I20: 70 | J20: 10 | K20: 630 | L20: 10
B21: 19 | C21: 10 | D21: 10 | E21: 30 | F21: 70 | G21: 70 | H21: 10 | I21: 10 | J21: 10 | K21: 30 | L21: 10
B22: 20 | C22: 10 | D22: 150 | E22: 70 | F22: 10 | G22: 70 | H22: 30 | I22: 10 | J22: 10 | K22: 10 | L22: 10
B23: 21 | C23: 10 | D23: 10 | E23: 10 | F23: 30 | G23: 10 | H23: 30 | I23: 10 | J23: 5110 | K23: 10 | L23: 10
B24: 22 | C24: 70 | D24: 10 | E24: 30 | F24: 70 | G24: 1270 | H24: 310 | I24: 10 | J24: 70 | K24: 10 | L24: 30
B25: 23 | C25: 70 | D25: 30 | E25: 10 | F25: 630 | G25: 30 | H25: 70 | I25: 70 | J25: 10 | K25: 70 | L25: 10
B26: 24 | C26: 10 | D26: 70 | E26: 10 | F26: 310 | G26: 30 | H26: 30 | I26: 10 | J26: 150 | K26: 70 | L26: 10
B27: 25 | C27: 30 | D27: 30 | E27: 10 | F27: 10 | G27: 10 | H27: 30 | I27: 30 | J27: 630 | K27: 30 | L27: 630
B28: 26 | C28: 150 | D28: 10 | E28: 30 | F28: 10 | G28: 30 | H28: 150 | I28: 10 | J28: 10 | K28: 10 | L28: 30
B29: 27 | C29: 70 | D29: 150 | E29: 10 | F29: 30 | G29: 10 | H29: 30 | I29: 10 | J29: 10 | K29: 30 | L29: 70
B30: 28 | C30: 70 | D30: 30 | E30: 70 | F30: 10 | G30: 30 | H30: 70 | I30: 30 | J30: 30 | K30: 30 | L30: 70
B31: 29 | C31: 1270 | D31: 10 | E31: 70 | F31: 70 | G31: 30 | H31: 10 | I31: 30 | J31: 10 | K31: 10 | L31: 30
B32: 30 | C32: 10 | D32: 10 | E32: 10 | F32: 10 | G32: 70 | H32: 30 | I32: 70 | J32: 150 | K32: 10 | L32: 70
B33: 31 | C33: 10 | D33: 10 | E33: 70 | F33: 30 | G33: 30 | H33: 30 | I33: 150 | J33: 30 | K33: 150 | L33: 30
B34: 32 | C34: 310 | D34: 10 | E34: 10 | F34: 10 | G34: 1270 | H34: 10230 | I34: 150 | J34: 150 | K34: 30 | L34: 30
B35: 33 | C35: 10 | D35: 30 | E35: 10 | F35: 30 | G35: 30 | H35: 10 | I35: 630 | J35: 10 | K35: 10 | L35: 10
B36: 34 | C36: 30 | D36: 10 | E36: 310 | F36: 10 | G36: 30 | H36: 30 | I36: 1270 | J36: 30 | K36: 310 | L36: 30
B37: 35 | C37: 10 | D37: 10 | E37: 70 | F37: 10 | G37: 30 | H37: 70 | I37: 630 | J37: 10 | K37: 30 | L37: 150
B38: 36 | C38: 10 | D38: 10 | E38: 630 | F38: 70 | G38: 310 | H38: 30 | I38: 10 | J38: 10 | K38: 30 | L38: 10
B39: 37 | C39: 10 | D39: 70 | E39: 10 | F39: 30 | G39: 10 | H39: 10 | I39: 10 | J39: 10 | K39: 30 | L39: 10
B40: 38 | C40: 70 | D40: 150 | E40: 30 | F40: 30 | G40: 70 | H40: 310 | I40: 10 | J40: 10 | K40: 10 | L40: 30
B41: 39 | C41: 10 | D41: 10 | E41: 10 | F41: 10 | G41: 30 | H41: 70 | I41: 10230 | J41: 10 | K41: 10 | L41: 150
B42: 40 | C42: 10 | D42: 10 | E42: 10 | F42: 30 | G42: 30 | H42: 30 | I42: 70 | J42: 30 | K42: 10 | L42: 10
B43: 41 | C43: 10 | D43: 150 | E43: 30 | F43: 10 | G43: 10 | H43: 10 | I43: 70 | J43: 10 | K43: 10 | L43: 150
B44: 42 | C44: 150 | D44: 10 | E44: 70 | F44: 310 | G44: 150 | H44: 10 | I44: 30 | J44: 70 | K44: 70 | L44: 10
B45: 43 | C45: 10 | D45: 10 | E45: 10 | F45: 70 | G45: 10 | H45: 150 | I45: 10 | J45: 30 | K45: 10 | L45: 10
B46: 44 | C46: 5110 | D46: 30 | E46: 30 | F46: 10 | G46: 10 | H46: 30 | I46: 10 | J46: 30 | K46: 10 | L46: 10
B47: 45 | C47: 10 | D47: 70 | E47: 310 | F47: 30 | G47: 70 | H47: 10 | I47: 630 | J47: 310 | K47: 10 | L47: 70
B48: 46 | C48: 10 | D48: 310 | E48: 10 | F48: 10 | G48: 10 | H48: 10 | I48: 70 | J48: 30 | K48: 10 | L48: 10
B49: 47 | C49: 30 | D49: 10 | E49: 30 | F49: 10 | G49: 30 | H49: 10 | I49: 310 | J49: 70 | K49: 310 | L49: 30
B50: 48 | C50: 30 | D50: 10 | E50: 70 | F50: 10 | G50: 70 | H50: 70 | I50: 310 | J50: 150 | K50: 310 | L50: 70
B51: 49 | C51: 10 | D51: 10 | E51: 10 | F51: 10 | G51: 310 | H51: 30 | I51: 10 | J51: 150 | K51: 30 | L51: 10
B52: 50 | C52: 30 | D52: 10 | E52: 30 | F52: 10 | G52: 10 | H52: 10 | I52: 10 | J52: 10 | K52: 10 | L52: 10
B53: 51 | C53: 30 | D53: 30 | E53: 30 | F53: 10 | G53: 70 | H53: 30 | I53: 30 | J53: 10 | K53: 10 | L53: 70
B54: 52 | C54: 30 | D54: 310 | E54: 10 | F54: 310 | G54: 70 | H54: 10 | I54: 10 | J54: 30 | K54: 81910 | L54: 10
B55: 53 | C55: 310 | D55: 10 | E55: 70 | F55: 10 | G55: 70 | H55: 10 | I55: 10 | J55: 10 | K55: 30 | L55: 10
B56: 54 | C56: 30 | D56: 10 | E56: 10 | F56: 10 | G56: 10 | H56: 150 | I56: 70 | J56: 10 | K56: 10 | L56: 10
B57: 55 | C57: 30 | D57: 10 | E57: 10 | F57: 10 | G57: 30 | H57: 70 | I57: 10 | J57: 10 | K57: 150 | L57: 30
B58: 56 | C58: 30 | D58: 1270 | E58: 10 | F58: 30 | G58: 10 | H58: 30 | I58: 30 | J58: 30 | K58: 10 | L58: 10
B59: 57 | C59: 30 | D59: 10 | E59: 30 | F59: 30 | G59: 30 | H59: 10 | I59: 30 | J59: 30 | K59: 630 | L59: 10
B60: 58 | C60: 10 | D60: 30 | E60: 70 | F60: 10 | G60: 70 | H60: 10 | I60: 10 | J60: 70 | K60: 10 | L60: 30
B61: 59 | C61: 10 | D61: 150 | E61: 150 | F61: 70 | G61: 70 | H61: 150 | I61: 30 | J61: 30 | K61: 70 | L61: 30
B62: 60 | C62: 30 | D62: 10 | E62: 30 | F62: 630 | G62: 30 | H62: 10 | I62: 10 | J62: 30 | K62: 30 | L62: 10
B63: 61 | C63: 10 | D63: 10 | E63: 10 | F63: 30 | G63: 10 | H63: 10 | I63: 10 | J63: 150 | K63: 30 | L63: 10
B64: 62 | C64: 310 | D64: 10 | E64: 10 | F64: 310 | G64: 310 | H64: 10 | I64: 10 | J64: 10 | K64: 70 | L64: 70
B65: 63 | C65: 30 | D65: 10 | E65: 30 | F65: 10 | G65: 10 | H65: 30 | I65: 70 | J65: 30 | K65: 310 | L65: 10
B66: 64 | C66: 10 | D66: 30 | E66: 30 | F66: 310 | G66: 10 | H66: 10 | I66: 70 | J66: 70 | K66: 30 | L66: 30
B67: 65 | C67: 310 | D67: 10 | E67: 10 | F67: 10 | G67: 150 | H67: 10 | I67: 10 | J67: 10 | K67: 30 | L67: 10
B68: 66 | C68: 10 | D68: 10 | E68: 30 | F68: 30 | G68: 10 | H68: 10 | I68: 10 | J68: 10 | K68: 10 | L68: 150
B69: 67 | C69: 70 | D69: 30 | E69: 10 | F69: 10 | G69: 630 | H69: 10 | I69: 150 | J69: 10 | K69: 30 | L69: 10
B70: 68 | C70: 30 | D70: 10 | E70: 10 | F70: 30 | G70: 30 | H70: 10 | I70: 10 | J70: 10 | K70: 10 | L70: 30
B71: 69 | C71: 10230 | D71: 30 | E71: 30 | F71: 30 | G71: 70 | H71: 10 | I71: 10 | J71: 310 | K71: 10 | L71: 30
B72: 70 | C72: 10 | D72: 10 | E72: 70 | F72: 10 | G72: 30 | H72: 10 | I72: 150 | J72: 30 | K72: 30 | L72: 10
B73: 71 | C73: 70 | D73: 10 | E73: 10 | F73: 30 | G73: 10 | H73: 10 | I73: 30 | J73: 10 | K73: 30 | L73: 10
B74: 72 | C74: 70 | D74: 10 | E74: 30 | F74: 10 | G74: 10 | H74: 30 | I74: 70 | J74: 10 | K74: 10 | L74: 10
B75: 73 | C75: 310 | D75: 10 | E75: 10 | F75: 10 | G75: 30 | H75: 150 | I75: 30 | J75: 630 | K75: 150 | L75: 10
B76: 74 | C76: 30 | D76: 10 | E76: 70 | F76: 310 | G76: 10 | H76: 30 | I76: 70 | J76: 10 | K76: 70 | L76: 10
B77: 75 | C77: 10 | D77: 10 | E77: 30 | F77: 70 | G77: 30 | H77: 30 | I77: 10 | J77: 10 | K77: 10 | L77: 10
B78: 76 | C78: 10 | D78: 10 | E78: 150 | F78: 10 | G78: 10 | H78: 10 | I78: 30 | J78: 10 | K78: 10 | L78: 10
B79: 77 | C79: 10 | D79: 70 | E79: 630 | F79: 10 | G79: 30 | H79: 10 | I79: 30 | J79: 150 | K79: 70 | L79: 10
B80: 78 | C80: 10 | D80: 30 | E80: 70 | F80: 10 | G80: 1270 | H80: 10 | I80: 30 | J80: 30 | K80: 10 | L80: 10
B81: 79 | C81: 30 | D81: 10 | E81: 10 | F81: 10 | G81: 10 | H81: 10 | I81: 10 | J81: 30 | K81: 30 | L81: 70
B82: 80 | C82: 150 | D82: 10 | E82: 30 | F82: 310 | G82: 630 | H82: 30 | I82: 10 | J82: 10 | K82: 10 | L82: 10
B83: 81 | C83: 30 | D83: 10 | E83: 2550 | F83: 150 | G83: 10 | H83: 10 | I83: 10 | J83: 10 | K83: 10 | L83: 10
B84: 82 | C84: 630 | D84: 10 | E84: 10 | F84: 70 | G84: 30 | H84: 10 | I84: 10 | J84: 30 | K84: 310 | L84: 150
B85: 83 | C85: 10 | D85: 10 | E85: 30 | F85: 30 | G85: 10 | H85: 10 | I85: 10 | J85: 10 | K85: 150 | L85: 30
B86: 84 | C86: 10 | D86: 10 | E86: 10 | F86: 10 | G86: 30 | H86: 10 | I86: 70 | J86: 10 | K86: 30 | L86: 30
B87: 85 | C87: 10 | D87: 10 | E87: 30 | F87: 1310710 | G87: 30 | H87: 10 | I87: 10 | J87: 30 | K87: 30 | L87: 10
B88: 86 | C88: 70 | D88: 10 | E88: 30 | F88: 10 | G88: 10 | H88: 70 | I88: 10 | J88: 70 | K88: 1270 | L88: 30
B89: 87 | C89: 10 | D89: 10 | E89: 10 | F89: 10 | G89: 10 | H89: 150 | I89: 310 | J89: 310 | K89: 70 | L89: 70
B90: 88 | C90: 70 | D90: 10 | E90: 70 | F90: 10 | G90: 10 | H90: 10 | I90: 150 | J90: 10 | K90: 30 | L90: 10
B91: 89 | C91: 30 | D91: 30 | E91: 10 | F91: 10 | G91: 70 | H91: 10 | I91: 10 | J91: 70 | K91: 10 | L91: 30
B92: 90 | C92: 150 | D92: 70 | E92: 10 | F92: 10 | G92: 10 | H92: 10 | I92: 70 | J92: 10 | K92: 10 | L92: 30
B93: 91 | C93: 10 | D93: 30 | E93: 70 | F93: 30 | G93: 30 | H93: 10 | I93: 70 | J93: 310 | K93: 70 | L93: 30
B94: 92 | C94: 70 | D94: 150 | E94: 30 | F94: 70 | G94: 30 | H94: 10 | I94: 10 | J94: 70 | K94: 70 | L94: 10
B95: 93 | C95: 150 | D95: 10 | E95: 10 | F95: 10 | G95: 10 | H95: 10 | I95: 30 | J95: 70 | K95: 30 | L95: 10
B96: 94 | C96: 10 | D96: 10 | E96: 10 | F96: 310 | G96: 70 | H96: 30 | I96: 10 | J96: 10 | K96: 150 | L96: 30
B97: 95 | C97: 70 | D97: 30 | E97: 150 | F97: 10 | G97: 10 | H97: 70 | I97: 10 | J97: 10 | K97: 70 | L97: 10
B98: 96 | C98: 630 | D98: 150 | E98: 30 | F98: 10 | G98: 10 | H98: 150 | I98: 30 | J98: 70 | K98: 10 | L98: 30
B99: 97 | C99: 10 | D99: 10 | E99: 10 | F99: 30 | G99: 30 | H99: 10 | I99: 10 | J99: 70 | K99: 30 | L99: 70
B100: 98 | C100: 10 | D100: 30 | E100: 30 | F100: 70 | G100: 70 | H100: 30 | I100: 10 | J100: 30 | K100: 10 | L100: 10
B101: 99 | C101: 30 | D101: 30 | E101: 10 | F101: 70 | G101: 30 | H101: 150 | I101: 10230 | J101: 10 | K101: 10 | L101: 70
B102: 100 | C102: 150 | D102: 30 | E102: 30 | F102: 10 | G102: 310 | H102: 10 | I102: 150 | J102: 70 | K102: 10 | L102: 10
B103: 101 | C103: 70 | D103: 1270 | E103: 10 | F103: 10 | G103: 10 | H103: 10 | I103: 10 | J103: 70 | K103: 30 | L103: 10
B104: 102 | C104: 30 | D104: 10 | E104: 20470 | F104: 70 | G104: 10 | H104: 70 | I104: 10 | J104: 10 | K104: 10 | L104: 310
B105: 103 | C105: 10 | D105: 30 | E105: 10 | F105: 10 | G105: 10 | H105: 1270 | I105: 10 | J105: 10 | K105: 30 | L105: 30
B106: 104 | C106: 10 | D106: 30 | E106: 10 | F106: 10 | G106: 30 | H106: 10 | I106: 30 | J106: 30 | K106: 10 | L106: 30
B107: 105 | C107: 10 | D107: 30 | E107: 10 | F107: 10 | G107: 10 | H107: 150 | I107: 10 | J107: 10 | K107: 10 | L107: 10
B108: 106 | C108: 10 | D108: 70 | E108: 70 | F108: 10 | G108: 30 | H108: 70 | I108: 10 | J108: 10 | K108: 70 | L108: 30
B109: 107 | C109: 10 | D109: 20470 | E109: 310 | F109: 30 | G109: 70 | H109: 10 | I109: 10 | J109: 30 | K109: 30 | L109: 10
B110: 108 | C110: 1270 | D110: 10 | E110: 10 | F110: 30 | G110: 30 | H110: 70 | I110: 70 | J110: 1270 | K110: 10 | L110: 10
B111: 109 | C111: 10 | D111: 30 | E111: 70 | F111: 10 | G111: 30 | H111: 10 | I111: 10 | J111: 10 | K111: 30 | L111: 30
B112: 110 | C112: 10 | D112: 10 | E112: 70 | F112: 10 | G112: 30 | H112: 10 | I112: 10 | J112: 30 | K112: 30 | L112: 10
B113: 111 | C113: 10 | D113: 10 | E113: 630 | F113: 30 | G113: 30 | H113: 70 | I113: 10 | J113: 30 | K113: 10 | L113: 10
B114: 112 | C114: 70 | D114: 150 | E114: 30 | F114: 10 | G114: 10 | H114: 150 | I114: 10 | J114: 10 | K114: 10 | L114: 30
B115: 113 | C115: 70 | D115: 150 | E115: 70 | F115: 30 | G115: 70 | H115: 30 | I115: 10 | J115: 10 | K115: 30 | L115: 10
B116: 114 | C116: 150 | D116: 10 | E116: 10 | F116: 30 | G116: 10 | H116: 10 | I116: 10 | J116: 30 | K116: 10 | L116: 70
B117: 115 | C117: 30 | D117: 10 | E117: 30 | F117: 10 | G117: 10 | H117: 10 | I117: 10 | J117: 10 | K117: 70 | L117: 30
B118: 116 | C118: 310 | D118: 30 | E118: 70 | F118: 10 | G118: 70 | H118: 10 | I118: 10 | J118: 30 | K118: 10 | L118: 10
B119: 117 | C119: 30 | D119: 10 | E119: 70 | F119: 10 | G119: 310 | H119: 10 | I119: 30 | J119: 10 | K119: 10 | L119: 630
B120: 118 | C120: 10 | D120: 10 | E120: 70 | F120: 30 | G120: 30 | H120: 10 | I120: 70 | J120: 150 | K120: 30 | L120: 70
B121: 119 | C121: 310 | D121: 70 | E121: 1270 | F121: 10 | G121: 30 | H121: 10 | I121: 70 | J121: 70 | K121: 30 | L121: 30
B122: 120 | C122: 10 | D122: 70 | E122: 10 | F122: 30 | G122: 10 | H122: 630 | I122: 10 | J122: 70 | K122: 70 | L122: 10
B123: 121 | C123: 70 | D123: 150 | E123: 150 | F123: 10 | G123: 10 | H123: 310 | I123: 10 | J123: 10 | K123: 70 | L123: 30
B124: 122 | C124: 30 | D124: 10 | E124: 30 | F124: 30 | G124: 10 | H124: 30 | I124: 10 | J124: 630 | K124: 150 | L124: 70
B125: 123 | C125: 310 | D125: 30 | E125: 10 | F125: 10 | G125: 30 | H125: 30 | I125: 30 | J125: 10 | K125: 10 | L125: 70
B126: 124 | C126: 30 | D126: 10 | E126: 10 | F126: 10 | G126: 10 | H126: 10 | I126: 30 | J126: 70 | K126: 30 | L126: 10
B127: 125 | C127: 30 | D127: 10 | E127: 10 | F127: 10 | G127: 10 | H127: 10 | I127: 10 | J127: 70 | K127: 30 | L127: 70
B128: 126 | C128: 30 | D128: 10 | E128: 30 | F128: 1270 | G128: 70 | H128: 10 | I128: 10 | J128: 10 | K128: 10 | L128: 10
B129: 127 | C129: 10 | D129: 150 | E129: 150 | F129: 30 | G129: 150 | H129: 10 | I129: 10 | J129: 30 | K129: 10 | L129: 10
B130: 128 | C130: 310 | D130: 10 | E130: 310 | F130: 10 | G130: 10 | H130: 10 | I130: 30 | J130: 10 | K130: 10 | L130: 70
B131: 129 | C131: 10 | D131: 10 | E131: 30 | F131: 10 | G131: 10 | H131: 310 | I131: 10 | J131: 10 | K131: 10 | L131: 30
B132: 130 | C132: 310 | D132: 10 | E132: 30 | F132: 70 | G132: 10 | H132: 10 | I132: 10 | J132: 30 | K132: 30 | L132: 30
B133: 131 | C133: 70 | D133: 70 | E133: 30 | F133: 70 | G133: 70 | H133: 30 | I133: 30 | J133: 10 | K133: 10 | L133: 10
B134: 132 | C134: 10 | D134: 5110 | E134: 10 | F134: 30 | G134: 30 | H134: 10 | I134: 10 | J134: 10 | K134: 10 | L134: 10
B135: 133 | C135: 10 | D135: 30 | E135: 70 | F135: 10 | G135: 2550 | H135: 70 | I135: 30 | J135: 30 | K135: 70 | L135: 30
B136: 134 | C136: 10 | D136: 70 | E136: 1270 | F136: 30 | G136: 10 | H136: 30 | I136: 30 | J136: 10 | K136: 10 | L136: 70
B137: 135 | C137: 70 | D137: 10 | E137: 150 | F137: 150 | G137: 10 | H137: 10 | I137: 70 | J137: 30 | K137: 10 | L137: 70
B138: 136 | C138: 70 | D138: 70 | E138: 10 | F138: 10 | G138: 10 | H138: 10 | I138: 10 | J138: 150 | K138: 1270 | L138: 70
B139: 137 | C139: 30 | D139: 10 | E139: 30 | F139: 1270 | G139: 10 | H139: 30 | I139: 2550 | J139: 150 | K139: 10 | L139: 10
B140: 138 | C140: 10 | D140: 10 | E140: 30 | F140: 30 | G140: 70 | H140: 10 | I140: 70 | J140: 10 | K140: 30 | L140: 10
B141: 139 | C141: 10 | D141: 150 | E141: 30 | F141: 10 | G141: 630 | H141: 10 | I141: 70 | J141: 10 | K141: 30 | L141: 10
B142: 140 | C142: 30 | D142: 10 | E142: 10 | F142: 30 | G142: 10 | H142: 30 | I142: 2550 | J142: 30 | K142: 70 | L142: 30
B143: 141 | C143: 30 | D143: 10 | E143: 30 | F143: 70 | G143: 310 | H143: 10 | I143: 10 | J143: 10 | K143: 10 | L143: 10
B144: 142 | C144: 70 | D144: 30 | E144: 10 | F144: 10 | G144: 10 | H144: 30 | I144: 30 | J144: 10 | K144: 10 | L144: 150
B145: 143 | C145: 70 | D145: 10 | E145: 30 | F145: 30 | G145: 10 | H145: 30 | I145: 70 | J145: 70 | K145: 10 | L145: 30
B146: 144 | C146: 70 | D146: 30 | E146: 10 | F146: 10 | G146: 10 | H146: 310 | I146: 150 | J146: 10 | K146: 630 | L146: 10
B147: 145 | C147: 10 | D147: 70 | E147: 10 | F147: 30 | G147: 30 | H147: 10 | I147: 150 | J147: 30 | K147: 10 | L147: 10
B148: 146 | C148: 30 | D148: 70 | E148: 70 | F148: 30 | G148: 10 | H148: 30 | I148: 10 | J148: 150 | K148: 10 | L148: 10
B149: 147 | C149: 70 | D149: 10 | E149: 10 | F149: 10 | G149: 30 | H149: 30 | I149: 30 | J149: 30 | K149: 310 | L149: 30
B150: 148 | C150: 30 | D150: 150 | E150: 10 | F150: 150 | G150: 310 | H150: 310 | I150: 10 | J150: 10 | K150: 30 | L150: 630
B151: 149 | C151: 10 | D151: 30 | E151: 10 | F151: 10 | G151: 10 | H151: 10 | I151: 10 | J151: 630 | K151: 70 | L151: 30
B152: 150 | C152: 10 | D152: 30 | E152: 70 | F152: 70 | G152: 70 | H152: 10 | I152: 30 | J152: 30 | K152: 10 | L152: 30
B153: 151 | C153: 310 | D153: 10 | E153: 30 | F153: 2550 | G153: 30 | H153: 70 | I153: 10 | J153: 30 | K153: 10 | L153: 70
B154: 152 | C154: 30 | D154: 150 | E154: 70 | F154: 70 | G154: 310 | H154: 10 | I154: 70 | J154: 310 | K154: 10 | L154: 10
B155: 153 | C155: 70 | D155: 30 | E155: 10 | F155: 70 | G155: 10 | H155: 10 | I155: 10 | J155: 10 | K155: 310 | L155: 30
B156: 154 | C156: 70 | D156: 10 | E156: 10 | F156: 10 | G156: 30 | H156: 30 | I156: 30 | J156: 30 | K156: 30 | L156: 30
B157: 155 | C157: 70 | D157: 10 | E157: 10 | F157: 1270 | G157: 30 | H157: 10 | I157: 10 | J157: 150 | K157: 10 | L157: 30
B158: 156 | C158: 30 | D158: 30 | E158: 10 | F158: 10 | G158: 10 | H158: 30 | I158: 150 | J158: 10 | K158: 10 | L158: 10
B159: 157 | C159: 150 | D159: 150 | E159: 150 | F159: 70 | G159: 310 | H159: 10 | I159: 10 | J159: 10 | K159: 30 | L159: 10
B160: 158 | C160: 10 | D160: 10 | E160: 310 | F160: 30 | G160: 70 | H160: 30 | I160: 30 | J160: 30 | K160: 30 | L160: 630
B161: 159 | C161: 30 | D161: 150 | E161: 10 | F161: 310 | G161: 10 | H161: 30 | I161: 70 | J161: 30 | K161: 10 | L161: 70
B162: 160 | C162: 30 | D162: 10 | E162: 10 | F162: 70 | G162: 70 | H162: 30 | I162: 10 | J162: 30 | K162: 10 | L162: 10
B163: 161 | C163: 30 | D163: 70 | E163: 70 | F163: 10 | G163: 30 | H163: 30 | I163: 30 | J163: 10 | K163: 30 | L163: 10
B164: 162 | C164: 150 | D164: 310 | E164: 30 | F164: 630 | G164: 30 | H164: 10 | I164: 10 | J164: 70 | K164: 310 | L164: 30
B165: 163 | C165: 150 | D165: 630 | E165: 10 | F165: 10 | G165: 10 | H165: 30 | I165: 30 | J165: 30 | K165: 10 | L165: 70
B166: 164 | C166: 10 | D166: 10 | E166: 10 | F166: 10 | G166: 10 | H166: 70 | I166: 10 | J166: 10 | K166: 10 | L166: 70
B167: 165 | C167: 10 | D167: 10 | E167: 10 | F167: 10 | G167: 10 | H167: 150 | I167: 30 | J167: 10 | K167: 10 | L167: 150
B168: 166 | C168: 30 | D168: 30 | E168: 30 | F168: 1270 | G168: 70 | H168: 10 | I168: 70 | J168: 10 | K168: 310 | L168: 10
B169: 167 | C169: 30 | D169: 10 | E169: 70 | F169: 10 | G169: 10 | H169: 150 | I169: 10 | J169: 310 | K169: 10 | L169: 10
B170: 168 | C170: 10 | D170: 10 | E170: 70 | F170: 10 | G170: 10 | H170: 150 | I170: 70 | J170: 10 | K170: 10 | L170: 10
B171: 169 | C171: 30 | D171: 630 | E171: 630 | F171: 70 | G171: 70 | H171: 30 | I171: 70 | J171: 10 | K171: 30 | L171: 70
B172: 170 | C172: 10 | D172: 10 | E172: 30 | F172: 10 | G172: 30 | H172: 10 | I172: 10 | J172: 10 | K172: 70 | L172: 150
B173: 171 | C173: 10 | D173: 10 | E173: 10 | F173: 10 | G173: 30 | H173: 30 | I173: 310 | J173: 30 | K173: 10 | L173: 10
B174: 172 | C174: 30 | D174: 1270 | E174: 10 | F174: 10 | G174: 10 | H174: 310 | I174: 10 | J174: 70 | K174: 10 | L174: 10
B175: 173 | C175: 10 | D175: 10 | E175: 30 | F175: 30 | G175: 30 | H175: 10 | I175: 10 | J175: 30 | K175: 10 | L175: 30
B176: 174 | C176: 310 | D176: 30 | E176: 10 | F176: 310 | G176: 10 | H176: 310 | I176: 10 | J176: 30 | K176: 150 | L176: 10
B177: 175 | C177: 10 | D177: 10 | E177: 10 | F177: 30 | G177: 10 | H177: 10 | I177: 30 | J177: 10 | K177: 70 | L177: 30
B178: 176 | C178: 10 | D178: 310 | E178: 10 | F178: 10 | G178: 150 | H178: 10 | I178: 10 | J178: 30 | K178: 10 | L178: 10
B179: 177 | C179: 10 | D179: 30 | E179: 10 | F179: 10 | G179: 150 | H179: 70 | I179: 10 | J179: 10 | K179: 10 | L179: 630
B180: 178 | C180: 30 | D180: 30 | E180: 2550 | F180: 150 | G180: 30 | H180: 70 | I180: 10 | J180: 10 | K180: 10 | L180: 10
B181: 179 | C181: 10 | D181: 10 | E181: 30 | F181: 10 | G181: 30 | H181: 30 | I181: 10 | J181: 10 | K181: 10 | L181: 30
B182: 180 | C182: 10 | D182: 310 | E182: 10 | F182: 630 | G182: 10 | H182: 10 | I182: 30 | J182: 10 | K182: 10 | L182: 10
B183: 181 | C183: 10 | D183: 10 | E183: 10 | F183: 10 | G183: 30 | H183: 30 | I183: 10 | J183: 310 | K183: 10 | L183: 70
B184: 182 | C184: 30 | D184: 70 | E184: 70 | F184: 70 | G184: 5110 | H184: 30 | I184: 10 | J184: 10 | K184: 150 | L184: 70
B185: 183 | C185: 30 | D185: 70 | E185: 10 | F185: 10 | G185: 10 | H185: 10 | I185: 10 | J185: 10 | K185: 30 | L185: 10
B186: 184 | C186: 310 | D186: 30 | E186: 10 | F186: 30 | G186: 10 | H186: 310 | I186: 630 | J186: 310 | K186: 70 | L186: 630
B187: 185 | C187: 30 | D187: 10 | E187: 10 | F187: 10 | G187: 310 | H187: 70 | I187: 10 | J187: 30 | K187: 10 | L187: 150
B188: 186 | C188: 630 | D188: 70 | E188: 10 | F188: 150 | G188: 30 | H188: 10 | I188: 10 | J188: 10 | K188: 10 | L188: 10
B189: 187 | C189: 10 | D189: 150 | E189: 70 | F189: 10 | G189: 10 | H189: 30 | I189: 10 | J189: 30 | K189: 30 | L189: 310
B190: 188 | C190: 2550 | D190: 150 | E190: 70 | F190: 30 | G190: 10 | H190: 310 | I190: 150 | J190: 10 | K190: 30 | L190: 310
B191: 189 | C191: 150 | D191: 310 | E191: 70 | F191: 30 | G191: 10 | H191: 30 | I191: 70 | J191: 10 | K191: 70 | L191: 10
B192: 190 | C192: 310 | D192: 30 | E192: 10 | F192: 70 | G192: 70 | H192: 10 | I192: 70 | J192: 70 | K192: 10 | L192: 70
B193: 191 | C193: 10 | D193: 10 | E193: 30 | F193: 10 | G193: 70 | H193: 30 | I193: 10 | J193: 10 | K193: 10 | L193: 10
B194: 192 | C194: 10 | D194: 10 | E194: 30 | F194: 30 | G194: 70 | H194: 70 | I194: 10 | J194: 10 | K194: 30 | L194: 10
B195: 193 | C195: 10 | D195: 10 | E195: 10 | F195: 2550 | G195: 150 | H195: 70 | I195: 10 | J195: 70 | K195: 70 | L195: 1270
B196: 194 | C196: 10 | D196: 10 | E196: 630 | F196: 10 | G196: 30 | H196: 70 | I196: 30 | J196: 10 | K196: 10 | L196: 70
B197: 195 | C197: 30 | D197: 10 | E197: 10 | F197: 70 | G197: 70 | H197: 10 | I197: 30 | J197: 10 | K197: 10 | L197: 10
B198: 196 | C198: 630 | D198: 70 | E198: 30 | F198: 10 | G198: 10 | H198: 10 | I198: 10 | J198: 30 | K198: 310 | L198: 150
B199: 197 | C199: 30 | D199: 10 | E199: 10 | F199: 30 | G199: 10 | H199: 30 | I199: 30 | J199: 30 | K199: 150 | L199: 630
B200: 198 | C200: 70 | D200: 10 | E200: 10 | F200: 10 | G200: 10 | H200: 10 | I200: 30 | J200: 10 | K200: 30 | L200: 70
... 802 more rows
